[Event "Turkish Women-ch Arzum 2022"]
[Site "Ayvalik"]
[Date "2022.03.09"]
[Round "6.20"]
[White "Gedik, Eylul Ceren"]
[Black "Alev, Gonulden Seda"]
[Result "1-0"]
[ECO "B94"]
[WhiteElo "1282"]
[BlackElo "1561"]
[Annotator "NA RC"]
[PlyCount "55"]
[EventDate "2022.03.04"]
[EventType "swiss"]
[EventCountry "TUR"]
[SourceTitle "playchess.com"]
[Source "ChessBase"]
[SourceQuality "1"]
[TimeControl "5400+30"]

1. e4 c5 2. Nf3 d6 3. d4 cxd4 4. Nxd4 Nf6 5. Nc3 a6 6. Bg5 e5 7. Nf5 Bxf5 8. exf5 Be7 9. g4 {[%emt 0:07:00]} Nc6 {[%emt 0:04:00]} 10. Bg2 {[%emt 0:01:30]} h6 {[%emt 0:04:30]} 11. Bxf6 {[%emt 0:10:30]} Bxf6 {[%emt 0:00:30]} 12. O-O {[%emt 0:02:30]} O-O {[%emt 0:06:30]} 13. Nd5 {[%emt 0:01:30]} Bh4 {[%emt 0:02:30]} 14. Qe2 {[%emt 0:05:30]} Nd4 {[%emt 0:02:30]} 15. Qd3 {[%emt 0:00:00]} Rc8 {[%emt 0:03:30]} 16. c3 {[%emt 0:02:00]} Nc6 {[%emt 0:00:30]} 17. Rad1 {[%emt 0:01:30]} Qg5 {[%emt 0:03:30]} 18. h3 {[%emt 0:09:30]} Rcd8 {[%emt 0:03:30]} 19. Rfe1 {[%emt 0:09:30]} Nb8 {[%emt 0:07:30]} 20. f6 {[%emt 0:10:30]} gxf6 {[%emt 0:05:30]} 21. Ne7+ {[%emt 0:01:30]} Kh8 {[%emt 0:01:30]} 22. Nf5 {[%emt 0:01:30]} h5 {[%emt 0:03:30]} 23. Nxd6 {[%emt 0:00:00]} f5 {[%emt 0:02:30]} 24. Rxe5 {[%emt 0:03:00]} Bxf2+ {[%emt 0:04:30]} 25. Kh1 {[%emt 0:04:30]} Qg6 {[%emt 0:26:48]} 26. Rxf5 {[%emt 0:02:30]} Bb6 {[%emt 0:01:23]} 27. Rxh5+ {[%emt 0:01:30]} Kg8 {[%emt 0:01:09]} 28. Be4 {[%emt 0:02:30]} 1-0

[Event "Turkish Women-ch Arzum 2022"]
[Site "Ayvalik"]
[Date "2022.03.09"]
[Round "6.21"]
[White "Tanir, Simay"]
[Black "Susin, Derya Defne"]
[Result "1-0"]
[ECO "E46"]
[WhiteElo "1510"]
[BlackElo "1285"]
[Annotator "NA RC"]
[PlyCount "101"]
[EventDate "2022.03.04"]
[EventType "swiss"]
[EventCountry "TUR"]
[SourceTitle "playchess.com"]
[Source "ChessBase"]
[SourceQuality "1"]
[TimeControl "5400+30"]

1. d4 Nf6 2. c4 e6 3. Nc3 Bb4 4. e3 O-O 5. Nge2 d5 6. a3 Be7 7. Ng3 {[%emt 0:06:00]} a6 {[%emt 0:09:00]} 8. cxd5 {[%emt 0:05:30]} exd5 {[%emt 0:03:30]} 9. Bd3 {[%emt 0:02:30]} Re8 {[%emt 0:04:30]} 10. O-O {[%emt 0:03:30]} Nbd7 {[%emt 0:04:30]} 11. f3 {[%emt 0:11:30]} Nf8 {[%emt 0:07:30]} 12. Bc2 {[%emt 0:03:30]} c5 {[%emt 0:05:30]} 13. Nce2 {[%emt 0:08:30]} Ng6 {[%emt 0:06:30]} 14. dxc5 {[%emt 0:06:30]} Bxc5 {[%emt 0:01:30]} 15. Nd4 {[%emt 0:00:30]} Ne5 {[%emt 0:05:30]} 16. b3 {[%emt 0:02:30]} Be6 {[%emt 0:00:00]} 17. Bb2 {[%emt 0:04:30]} Rc8 {[%emt 0:16:00]} 18. Nxe6 {[%emt 0:12:30]} Rxe6 {[%emt 0:11:30]} 19. Bf5 {[%emt 0:02:30]} Bxe3+ {[%emt 0:00:30]} 20. Kh1 {[%emt 0:00:00]} d4 {[%emt 0:01:30]} 21. Bxe6 {[%emt 0:03:00]} fxe6 {[%emt 0:00:30]} 22. Re1 {[%emt 0:00:30]} Ng6 {[%emt 0:07:34]} 23. Nf1 {[%emt 0:01:30]} Nd5 {[%emt 0:07:56]} 24. Nxe3 {[%emt 0:06:30]} Nxe3 {[%emt 0:03:40]} 25. Qxd4 {[%emt 0:01:30]} Qxd4 {[%emt 0:02:15]} 26. Bxd4 {[%emt 0:00:00]} Nf5 {[%emt 0:01:07]} 27. Bf2 {[%emt 0:02:09]} Rc2 {[%emt 0:01:05]} 28. Kg1 {[%emt 0:00:32]} Nf4 {[%emt 0:00:28]} 29. Kf1 {[%emt 0:02:50]} Ne7 {[%emt 0:01:52]} 30. g3 {[%emt 0:01:28]} Nh3 {[%emt 0:00:28]} 31. Re2 {[%emt 0:00:11]} Rc3 {[%emt 0:00:24]} 32. Rxe6 {[%emt 0:01:16]} Nf5 {[%emt 0:01:02]} 33. g4 {[%emt 0:01:57]} Rxf3 {[%emt 0:00:32]} 34. gxf5 {[%emt 0:01:17]} Rxf2+ {[%emt 0:00:30]} 35. Ke1 {[%emt 0:00:00]} Rxh2 {[%emt 0:00:00]} 36. Rd1 {[%emt 0:00:43]} Nf4 {[%emt 0:00:43]} 37. Rd8+ {[%emt 0:04:02]} Kf7 {[%emt 0:00:30]} 38. Rd7+ {[%emt 0:00:30]} Kf8 {[%emt 0:00:00]} 39. Ree7 {[%emt 0:02:13]} Nd3+ {[%emt 0:00:40]} 40. Kd1 {[%emt 0:01:02]} Nb2+ {[%emt 0:01:00]} 41. Kc1 {[%emt 0:00:27]} Nd3+ {[%emt 0:00:39]} 42. Kb1 {[%emt 0:00:22]} Nc5 {[%emt 0:00:34]} 43. Rf7+ {[%emt 0:00:42]} Ke8 {[%emt 0:00:05]} 44. Rde7+ {[%emt 0:00:00]} Kd8 {[%emt 0:00:30]} 45. Rxg7 {[%emt 0:00:10]} Rh1+ {[%emt 0:00:55]} 46. Kc2 {[%emt 0:00:30]} Rh2+ {[%emt 0:00:30]} 47. Kc3 {[%emt 0:00:00]} Rh3+ {[%emt 0:00:17]} 48. Kc4 {[%emt 0:00:00]} Nxb3 {[%emt 0:00:09]} 49. f6 {[%emt 0:01:05]} Na5+ {[%emt 0:00:26]} 50. Kd5 {[%emt 0:00:33]} Rxa3 {[%emt 0:01:19]} 51. Rg8# {[%emt 0:00:08]} 1-0

[Event "Turkish Women-ch Arzum 2022"]
[Site "Ayvalik"]
[Date "2022.03.09"]
[Round "6.23"]
[White "Aydogan, Arya"]
[Black "Sahin, Cagla Yudum"]
[Result "1/2-1/2"]
[ECO "C48"]
[WhiteElo "1328"]
[BlackElo "1162"]
[Annotator "NA RC"]
[PlyCount "74"]
[EventDate "2022.03.04"]
[EventType "swiss"]
[EventCountry "TUR"]
[SourceTitle "playchess.com"]
[Source "ChessBase"]
[SourceQuality "1"]
[TimeControl "5400+30"]

1. e4 e5 2. Nf3 Nc6 3. Nc3 Nf6 4. Bb5 Nd4 5. Bc4 Bc5 {[%emt 0:02:00]} 6. d3 {[%emt 0:10:30]} d6 {[%emt 0:00:30]} 7. h3 {[%emt 0:01:30]} c6 {[%emt 0:02:30]} 8. a4 {[%emt 0:05:30]} O-O {[%emt 0:04:30]} 9. O-O {[%emt 0:03:30]} h6 {[%emt 0:02:30]} 10. Ba2 {[%emt 0:16:30]} Be6 {[%emt 0:01:30]} 11. Be3 {[%emt 0:02:30]} Qb6 {[%emt 0:05:30]} 12. Rb1 {[%emt 0:08:30]} a5 {[%emt 0:06:30]} 13. Bxe6 {[%emt 0:05:30]} Nxe6 {[%emt 0:00:30]} 14. Bxc5 {[%emt 0:02:30]} Qxc5 {[%emt 0:01:30]} 15. Re1 {[%emt 0:05:30]} Nh5 {[%emt 0:07:30]} 16. Qd2 {[%emt 0:06:30]} Nhf4 {[%emt 0:03:30]} 17. Qe3 {[%emt 0:03:30]} Rfe8 {[%emt 0:07:30]} 18. Kh2 {[%emt 0:06:30]} Rad8 {[%emt 0:04:30]} 19. g3 {[%emt 0:02:45]} Ng6 {[%emt 0:01:30]} 20. h4 {[%emt 0:02:11]} Nd4 {[%emt 0:03:30]} 21. Rbc1 {[%emt 0:04:12]} Re6 {[%emt 0:06:30]} 22. Nd1 {[%emt 0:06:24]} Qb4 {[%emt 0:10:30]} 23. Nxd4 {[%emt 0:00:56]} exd4 {[%emt 0:00:30]} 24. Qe2 {[%emt 0:00:19]} Qxa4 {[%emt 0:00:30]} 25. f4 {[%emt 0:02:14]} Ree8 {[%emt 0:04:30]} 26. b3 {[%emt 0:01:25]} Qb5 {[%emt 0:01:30]} 27. Nf2 {[%emt 0:00:34]} Ne7 {[%emt 0:01:30]} 28. Qf3 {[%emt 0:01:01]} Qb4 {[%emt 0:04:10]} 29. g4 {[%emt 0:01:01]} Qc3 {[%emt 0:03:16]} 30. g5 {[%emt 0:01:04]} Kh7 {[%emt 0:02:01]} 31. f5 {[%emt 0:01:06]} Qc5 {[%emt 0:03:54]} 32. Rg1 {[%emt 0:01:12]} Qe5+ {[%emt 0:00:35]} 33. Kg2 {[%emt 0:00:24]} Rh8 {[%emt 0:01:47]} 34. Ng4 {[%emt 0:00:15]} Qc5 {[%emt 0:00:03]} 35. Qf4 {[%emt 0:01:09]} h5 {[%emt 0:01:34]} 36. Nf2 {[%emt 0:00:47]} Qe5 {[%emt 0:00:12]} 37. Qf3 {[%emt 0:00:00]} g6 {[%emt 0:00:16]} 1/2-1/2

[Event "Turkish Women-ch Arzum 2022"]
[Site "Ayvalik"]
[Date "2022.03.09"]
[Round "6.24"]
[White "Oztatar, Meleknaz"]
[Black "Engin, Cagla"]
[Result "1/2-1/2"]
[ECO "E61"]
[WhiteElo "1063"]
[BlackElo "1436"]
[Annotator "NA RC"]
[PlyCount "60"]
[EventDate "2022.03.04"]
[EventType "swiss"]
[EventCountry "TUR"]
[SourceTitle "playchess.com"]
[Source "ChessBase"]
[SourceQuality "1"]
[TimeControl "5400+30"]

1. d4 d6 2. c4 g6 3. Nc3 Bg7 4. Nf3 Nf6 5. Bg5 Nbd7 6. e3 O-O 7. Bd3 {[%emt 0:06:00]} c6 {[%emt 0:07:00]} 8. O-O {[%emt 0:02:30]} h6 {[%emt 0:02:30]} 9. Bh4 {[%emt 0:01:30]} g5 {[%emt 0:03:30]} 10. Bg3 {[%emt 0:01:30]} Nh5 {[%emt 0:00:30]} 11. Qc2 {[%emt 0:00:30]} e5 {[%emt 0:10:30]} 12. Rfd1 {[%emt 0:07:30]} Qe7 {[%emt 0:02:30]} 13. a3 {[%emt 0:07:30]} Nxg3 {[%emt 0:01:30]} 14. hxg3 {[%emt 0:00:30]} Nf6 {[%emt 0:00:00]} 15. d5 {[%emt 0:04:30]} cxd5 {[%emt 0:02:00]} 16. cxd5 {[%emt 0:00:30]} Bg4 {[%emt 0:01:30]} 17. e4 {[%emt 0:02:30]} Rac8 {[%emt 0:01:30]} 18. Qd2 {[%emt 0:01:30]} Nd7 {[%emt 0:01:30]} 19. b4 {[%emt 0:05:30]} Nb6 {[%emt 0:01:30]} 20. Rdc1 {[%emt 0:03:30]} f5 {[%emt 0:06:30]} 21. Nh2 {[%emt 0:09:30]} fxe4 {[%emt 0:01:30]} 22. Bxe4 {[%emt 0:02:30]} Bf5 {[%emt 0:02:30]} 23. Nf1 {[%emt 0:04:30]} Nc4 {[%emt 0:07:30]} 24. Qe2 {[%emt 0:02:30]} Nb6 {[%emt 0:05:30]} 25. Ne3 {[%emt 0:01:30]} Bxe4 {[%emt 0:00:30]} 26. Nxe4 {[%emt 0:00:30]} Rc7 {[%emt 0:01:30]} 27. g4 {[%emt 0:02:30]} Rfc8 {[%emt 0:03:30]} 28. Rxc7 {[%emt 0:00:30]} Qxc7 {[%emt 0:00:30]} 29. Rd1 {[%emt 0:02:30]} Na4 {[%emt 0:01:30]} 30. Nf5 {[%emt 0:02:30]} Bf8 {[%emt 0:01:30]} 1/2-1/2

[Event "Turkish Women-ch Arzum 2022"]
[Site "Ayvalik"]
[Date "2022.03.09"]
[Round "6.25"]
[White "Turunz, Dilek"]
[Black "Mullakutukcu, Ela"]
[Result "1-0"]
[ECO "E18"]
[WhiteElo "1443"]
[BlackElo "1154"]
[Annotator "NA RC"]
[PlyCount "97"]
[EventDate "2022.03.04"]
[EventType "swiss"]
[EventCountry "TUR"]
[SourceTitle "playchess.com"]
[Source "ChessBase"]
[SourceQuality "1"]
[TimeControl "5400+30"]

1. c4 Nf6 2. g3 e6 3. Bg2 Be7 4. Nf3 O-O 5. O-O c5 6. Nc3 {[%emt 0:01:30]} d5 {[%emt 0:08:30]} 7. cxd5 {[%emt 0:01:30]} exd5 {[%emt 0:00:30]} 8. d4 {[%emt 0:00:30]} b6 {[%emt 0:01:30]} 9. Qb3 {[%emt 0:06:30]} c4 {[%emt 0:03:30]} 10. Qc2 {[%emt 0:02:30]} Bb7 {[%emt 0:01:30]} 11. b3 {[%emt 0:13:30]} Na6 {[%emt 0:08:30]} 12. Ne5 {[%emt 0:05:30]} cxb3 {[%emt 0:05:30]} 13. Qxb3 {[%emt 0:01:30]} Nc7 {[%emt 0:02:30]} 14. a4 {[%emt 0:03:30]} Ne6 {[%emt 0:05:30]} 15. Rd1 {[%emt 0:01:30]} a6 {[%emt 0:03:30]} 16. Rb1 {[%emt 0:01:30]} Qc7 {[%emt 0:09:30]} 17. Be3 {[%emt 0:15:30]} Rac8 {[%emt 0:05:30]} 18. Rdc1 {[%emt 0:00:30]} Qd6 {[%emt 0:02:30]} 19. Qxb6 {[%emt 0:09:30]} Qxb6 {[%emt 0:00:30]} 20. Rxb6 {[%emt 0:00:00]} Ba3 {[%emt 0:01:30]} 21. Rcb1 {[%emt 0:01:00]} Rxc3 {[%emt 0:01:30]} 22. Rxb7 {[%emt 0:01:30]} Bd6 {[%emt 0:02:30]} 23. Nd7 {[%emt 0:02:30]} Nxd7 {[%emt 0:01:30]} 24. Rxd7 {[%emt 0:00:00]} Ba3 {[%emt 0:00:30]} 25. Bxd5 {[%emt 0:01:00]} Nc7 {[%emt 0:01:30]} 26. Be4 {[%emt 0:04:30]} Re8 {[%emt 0:01:30]} 27. Bd3 {[%emt 0:00:30]} a5 {[%emt 0:00:30]} 28. Rb7 {[%emt 0:00:30]} Ne6 {[%emt 0:01:30]} 29. Rxf7 {[%emt 0:01:30]} Bf8 {[%emt 0:00:00]} 30. Rf5 {[%emt 0:01:30]} Bb4 {[%emt 0:01:00]} 31. Re5 {[%emt 0:01:30]} Bd6 {[%emt 0:00:30]} 32. Rxa5 {[%emt 0:00:30]} Nd8 {[%emt 0:00:30]} 33. Rd7 {[%emt 0:00:30]} Bb4 {[%emt 0:00:30]} 34. Ra8 {[%emt 0:00:00]} Be7 {[%emt 0:00:30]} 35. Bd2 {[%emt 0:01:00]} Ra3 {[%emt 0:00:30]} 36. Bb5 {[%emt 0:04:30]} Bf6 {[%emt 0:00:30]} 37. Ba5 {[%emt 0:00:30]} Ra1+ {[%emt 0:01:30]} 38. Kg2 {[%emt 0:00:00]} Rb1 {[%emt 0:00:00]} 39. Bxd8 {[%emt 0:01:00]} Bxd8 {[%emt 0:00:00]} 40. Rdxd8 {[%emt 0:00:00]} Kf7 {[%emt 0:00:00]} 41. Rab8 {[%emt 0:00:00]} Kf6 {[%emt 0:00:00]} 42. a5 {[%emt 0:00:00]} Kg5 {[%emt 0:00:30]} 43. a6 {[%emt 0:00:00]} Ra1 {[%emt 0:00:30]} 44. Rb7 {[%emt 0:00:30]} g6 {[%emt 0:00:30]} 45. a7 {[%emt 0:00:00]} Kh6 {[%emt 0:00:30]} 46. Bc6 {[%emt 0:00:00]} Ra6 {[%emt 0:00:00]} 47. a8=Q {[%emt 0:01:30]} Rxa8 {[%emt 0:00:00]} 48. Rxh7+ {[%emt 0:00:30]} Kxh7 {[%emt 0:00:30]} 49. Bxa8 {[%emt 0:00:00]} 1-0

[Event "Turkish Women-ch Arzum 2022"]
[Site "Ayvalik"]
[Date "2022.03.09"]
[Round "6.26"]
[White "Gulceken, Sumeyye"]
[Black "Topal, Berfin"]
[Result "1-0"]
[ECO "D37"]
[WhiteElo "1591"]
[BlackElo "1322"]
[Annotator "NA RC"]
[PlyCount "81"]
[EventDate "2022.03.04"]
[EventType "swiss"]
[EventCountry "TUR"]
[SourceTitle "playchess.com"]
[Source "ChessBase"]
[SourceQuality "1"]
[TimeControl "5400+30"]

1. d4 d5 2. c4 e6 3. Nc3 Nf6 4. Nf3 Nbd7 5. e3 b6 6. Bd3 Bb7 7. cxd5 Nxd5 8. e4 Nxc3 9. bxc3 Nf6 10. Qa4+ Qd7 {[%emt 0:02:30]} 11. Bb5 {[%emt 0:09:00]} c6 {[%emt 0:00:30]} 12. Bd3 {[%emt 0:00:00]} b5 {[%emt 0:04:30]} 13. Qc2 {[%emt 0:01:00]} a6 {[%emt 0:03:30]} 14. Bg5 {[%emt 0:02:30]} Be7 {[%emt 0:01:30]} 15. O-O {[%emt 0:00:30]} h6 {[%emt 0:04:30]} 16. Be3 {[%emt 0:05:30]} O-O {[%emt 0:03:30]} 17. Rfd1 {[%emt 0:03:30]} Rfd8 {[%emt 0:02:30]} 18. Qc1 {[%emt 0:09:30]} Bf8 {[%emt 0:04:30]} 19. Ne5 {[%emt 0:13:30]} Qc7 {[%emt 0:04:30]} 20. c4 {[%emt 0:08:30]} Rac8 {[%emt 0:03:30]} 21. c5 {[%emt 0:01:30]} Nd7 {[%emt 0:23:30]} 22. Nf3 {[%emt 0:05:30]} e5 {[%emt 0:06:30]} 23. a4 {[%emt 0:05:30]} Kh7 {[%emt 0:11:30]} 24. d5 {[%emt 0:03:30]} cxd5 {[%emt 0:01:30]} 25. exd5+ {[%emt 0:02:30]} g6 {[%emt 0:00:30]} 26. c6 {[%emt 0:01:30]} Ba8 {[%emt 0:03:30]} 27. axb5 {[%emt 0:09:30]} Qd6 {[%emt 0:10:00]} 28. Qb1 {[%emt 0:02:43]} Nf6 {[%emt 0:02:55]} 29. Rxa6 {[%emt 0:05:19]} Nxd5 {[%emt 0:05:03]} 30. Be4 {[%emt 0:08:45]} Nc3 {[%emt 0:02:49]} 31. Rxd6 {[%emt 0:00:30]} Nxb1 {[%emt 0:00:00]} 32. Rxd8 {[%emt 0:00:24]} Rxd8 {[%emt 0:00:00]} 33. h4 {[%emt 0:03:54]} Nc3 {[%emt 0:00:04]} 34. c7 {[%emt 0:01:12]} Rc8 {[%emt 0:01:11]} 35. Rxa8 {[%emt 0:00:51]} Rxc7 {[%emt 0:00:08]} 36. Rxf8 {[%emt 0:00:24]} Nxe4 {[%emt 0:00:03]} 37. Nxe5 {[%emt 0:00:17]} Nd6 {[%emt 0:00:33]} 38. b6 {[%emt 0:00:32]} Rb7 {[%emt 0:00:30]} 39. Bc5 {[%emt 0:01:13]} Ne4 {[%emt 0:00:25]} 40. Bd4 {[%emt 0:00:27]} Nd6 {[%emt 0:00:55]} 41. Nc4 {[%emt 0:00:44]} 1-0

[Event "Turkish Women-ch Arzum 2022"]
[Site "Ayvalik"]
[Date "2022.03.09"]
[Round "6.27"]
[White "Buyuk, Elvin Esma"]
[Black "Bassari, Senem Gul"]
[Result "1-0"]
[ECO "E61"]
[WhiteElo "1326"]
[BlackElo "1197"]
[Annotator "NA RC"]
[PlyCount "85"]
[EventDate "2022.03.04"]
[EventType "swiss"]
[EventCountry "TUR"]
[SourceTitle "playchess.com"]
[Source "ChessBase"]
[SourceQuality "1"]
[TimeControl "5400+30"]

1. c4 {[%emt 0:01:00]} e5 {[%emt 0:01:00]} 2. Nc3 {[%emt 0:00:30]} Nf6 {[%emt 0:00:30]} 3. e3 {[%emt 0:00:30]} d6 {[%emt 0:00:30]} 4. Nge2 {[%emt 0:00:30]} g6 {[%emt 0:00:30]} 5. g3 {[%emt 0:00:30]} Bg7 {[%emt 0:00:30]} 6. Bg2 {[%emt 0:00:30]} O-O {[%emt 0:00:30]} 7. d4 {[%emt 0:01:30]} Qe7 {[%emt 0:05:30]} 8. O-O {[%emt 0:01:30]} Nc6 {[%emt 0:01:30]} 9. d5 {[%emt 0:05:30]} Nb8 {[%emt 0:01:30]} 10. e4 {[%emt 0:01:30]} Nfd7 {[%emt 0:06:30]} 11. Be3 {[%emt 0:12:30]} f5 {[%emt 0:06:30]} 12. Qd2 {[%emt 0:12:30]} Nf6 {[%emt 0:05:30]} 13. f3 {[%emt 0:07:30]} Qf7 {[%emt 0:13:30]} 14. b4 {[%emt 0:07:30]} Bd7 {[%emt 0:23:30]} 15. c5 {[%emt 0:03:30]} Na6 {[%emt 0:04:30]} 16. Rab1 {[%emt 0:10:30]} Rae8 {[%emt 0:03:30]} 17. Qd3 {[%emt 0:11:30]} h6 {[%emt 0:08:08]} 18. c6 {[%emt 0:02:21]} Bc8 {[%emt 0:02:38]} 19. Nb5 {[%emt 0:04:02]} bxc6 {[%emt 0:08:18]} 20. Nxa7 {[%emt 0:02:22]} Nb8 {[%emt 0:00:53]} 21. Nxc6 {[%emt 0:02:45]} Nxc6 {[%emt 0:00:36]} 22. dxc6 {[%emt 0:00:05]} Qxa2 {[%emt 0:01:41]} 23. Ra1 {[%emt 0:03:10]} Qf7 {[%emt 0:00:57]} 24. Ra7 {[%emt 0:03:14]} Be6 {[%emt 0:01:42]} 25. Rf2 {[%emt 0:01:32]} Rb8 {[%emt 0:00:53]} 26. Qa3 {[%emt 0:00:50]} d5 {[%emt 0:01:06]} 27. Bc5 {[%emt 0:01:15]} Rfd8 {[%emt 0:00:37]} 28. exf5 {[%emt 0:00:49]} gxf5 {[%emt 0:00:36]} 29. Qa5 {[%emt 0:00:33]} Rdc8 {[%emt 0:00:43]} 30. b5 {[%emt 0:01:32]} Qe8 {[%emt 0:00:35]} 31. f4 {[%emt 0:01:14]} e4 {[%emt 0:00:17]} 32. Nd4 {[%emt 0:00:40]} Bf7 {[%emt 0:00:32]} 33. Nxf5 {[%emt 0:00:43]} Ng4 {[%emt 0:00:26]} 34. Re2 {[%emt 0:00:27]} Bf8 {[%emt 0:00:41]} 35. Bxf8 {[%emt 0:00:40]} Qxf8 {[%emt 0:00:12]} 36. Rxc7 {[%emt 0:00:33]} Rxc7 {[%emt 0:00:50]} 37. Qxc7 {[%emt 0:00:09]} Rxb5 {[%emt 0:00:25]} 38. Ne7+ {[%emt 0:00:20]} Kh8 {[%emt 0:00:00]} 39. Bh3 {[%emt 0:00:35]} h5 {[%emt 0:00:56]} 40. Qd6 {[%emt 0:00:26]} Qg7 {[%emt 0:00:34]} 41. Nf5 {[%emt 0:00:47]} Qg8 {[%emt 0:00:39]} 42. Bxg4 {[%emt 0:00:36]} hxg4 {[%emt 0:00:30]} 43. Qf6+ {[%emt 0:00:08]} 1-0

[Event "Turkish Women-ch Arzum 2022"]
[Site "Ayvalik"]
[Date "2022.03.09"]
[Round "6.28"]
[White "Senkal, Defne"]
[Black "Guleryuz, Zeynep"]
[Result "1-0"]
[ECO "B01"]
[WhiteElo "1247"]
[BlackElo "1186"]
[Annotator "NA RC"]
[PlyCount "57"]
[EventDate "2022.03.04"]
[EventType "swiss"]
[EventCountry "TUR"]
[SourceTitle "playchess.com"]
[Source "ChessBase"]
[SourceQuality "1"]
[TimeControl "5400+30"]

1. e4 {[%emt 0:01:00]} d5 {[%emt 0:01:00]} 2. exd5 {[%emt 0:00:30]} Nf6 {[%emt 0:00:30]} 3. d4 {[%emt 0:00:30]} Nxd5 {[%emt 0:00:30]} 4. c4 {[%emt 0:00:00]} Nb6 {[%emt 0:06:30]} 5. Nf3 {[%emt 0:02:00]} Bg4 {[%emt 0:03:30]} 6. Be2 {[%emt 0:02:30]} c6 {[%emt 0:06:30]} 7. b3 {[%emt 0:03:30]} e6 {[%emt 0:02:30]} 8. Bb2 {[%emt 0:03:30]} Be7 {[%emt 0:05:30]} 9. O-O {[%emt 0:01:30]} Bxf3 {[%emt 0:01:30]} 10. Bxf3 {[%emt 0:00:30]} Bf6 {[%emt 0:05:30]} 11. Na3 {[%emt 0:05:30]} a5 {[%emt 0:05:30]} 12. Nc2 {[%emt 0:01:30]} N8d7 {[%emt 0:05:30]} 13. Ne3 {[%emt 0:07:30]} a4 {[%emt 0:06:30]} 14. Qe2 {[%emt 0:08:30]} a3 {[%emt 0:20:30]} 15. Bc3 {[%emt 0:00:30]} Nf8 {[%emt 0:02:30]} 16. Rad1 {[%emt 0:08:30]} Ng6 {[%emt 0:02:30]} 17. Bb4 {[%emt 0:07:30]} Nf4 {[%emt 0:03:27]} 18. Qd2 {[%emt 0:03:30]} Nd7 {[%emt 0:03:49]} 19. Nf5 {[%emt 0:03:30]} Qc7 {[%emt 0:08:30]} 20. Nd6+ {[%emt 0:00:30]} Kd8 {[%emt 0:00:15]} 21. Qxf4 {[%emt 0:00:30]} Rg8 {[%emt 0:05:41]} 22. Nxf7+ {[%emt 0:00:30]} Kc8 {[%emt 0:00:37]} 23. Bd6 {[%emt 0:00:30]} Qa5 {[%emt 0:01:06]} 24. Ne5 {[%emt 0:00:30]} g5 {[%emt 0:00:24]} 25. Qg4 {[%emt 0:00:30]} Re8 {[%emt 0:00:38]} 26. Nxd7 {[%emt 0:00:30]} Kxd7 {[%emt 0:00:19]} 27. c5 {[%emt 0:00:30]} Qc3 {[%emt 0:00:32]} 28. Qh5 {[%emt 0:00:30]} Bd8 {[%emt 0:01:30]} 29. Qf7+ {[%emt 0:00:30]} 1-0

[Event "Turkish Women-ch Arzum 2022"]
[Site "Ayvalik"]
[Date "2022.03.09"]
[Round "6.29"]
[White "Engel, Ecrin Tuana"]
[Black "Bodur, Ilke Lal"]
[Result "1/2-1/2"]
[ECO "C50"]
[WhiteElo "1250"]
[BlackElo "1151"]
[Annotator "NA RC"]
[PlyCount "71"]
[EventDate "2022.03.04"]
[EventType "swiss"]
[EventCountry "TUR"]
[SourceTitle "playchess.com"]
[Source "ChessBase"]
[SourceQuality "1"]
[TimeControl "5400+30"]

1. e4 e5 2. Nf3 Nc6 3. d4 exd4 4. Nxd4 d6 5. Nc3 Nf6 6. Bc4 Be7 {[%emt 0:03:30]} 7. Nb3 {[%emt 0:08:00]} O-O {[%emt 0:03:30]} 8. O-O {[%emt 0:00:00]} a6 {[%emt 0:09:30]} 9. a4 {[%emt 0:04:00]} Be6 {[%emt 0:02:30]} 10. Nd2 {[%emt 0:16:30]} Bxc4 {[%emt 0:07:30]} 11. Nxc4 {[%emt 0:00:30]} Nxe4 {[%emt 0:08:30]} 12. Nxe4 {[%emt 0:01:30]} d5 {[%emt 0:00:30]} 13. Ncd2 {[%emt 0:00:30]} dxe4 {[%emt 0:00:30]} 14. Nxe4 {[%emt 0:00:00]} Qxd1 {[%emt 0:00:30]} 15. Rxd1 {[%emt 0:00:00]} Rad8 {[%emt 0:00:30]} 16. Bf4 {[%emt 0:00:30]} f5 {[%emt 0:04:30]} 17. Ng3 {[%emt 0:04:30]} Bd6 {[%emt 0:17:30]} 18. Bxd6 {[%emt 0:02:30]} Rxd6 {[%emt 0:00:30]} 19. Rxd6 {[%emt 0:00:30]} cxd6 {[%emt 0:00:30]} 20. Rd1 {[%emt 0:00:00]} Rf6 {[%emt 0:00:00]} 21. c3 {[%emt 0:04:00]} g6 {[%emt 0:04:00]} 22. Nf1 {[%emt 0:04:30]} Re6 {[%emt 0:04:30]} 23. Ne3 {[%emt 0:04:30]} f4 {[%emt 0:00:30]} 24. Nc4 {[%emt 0:01:30]} d5 {[%emt 0:02:30]} 25. Nd2 {[%emt 0:02:30]} Kf7 {[%emt 0:02:30]} 26. Kf1 {[%emt 0:00:30]} Ke7 {[%emt 0:00:30]} 27. Nf3 {[%emt 0:00:30]} Rd6 {[%emt 0:03:30]} 28. Ke2 {[%emt 0:08:30]} Re6+ {[%emt 0:02:30]} 29. Kd3 {[%emt 0:01:30]} Ne5+ {[%emt 0:00:30]} 30. Nxe5 {[%emt 0:00:30]} Rxe5 {[%emt 0:00:00]} 31. Rd2 {[%emt 0:00:30]} Kd6 {[%emt 0:02:00]} 32. Re2 {[%emt 0:00:30]} Rxe2 {[%emt 0:02:30]} 33. Kxe2 {[%emt 0:00:30]} a5 {[%emt 0:00:30]} 34. Kd3 {[%emt 0:00:30]} Kc5 {[%emt 0:07:35]} 35. g3 {[%emt 0:02:30]} f3 {[%emt 0:04:10]} 36. b3 {[%emt 0:02:30]} 1/2-1/2

[Event "Turkish Women-ch Arzum 2022"]
[Site "Ayvalik"]
[Date "2022.03.09"]
[Round "6.30"]
[White "Olmez, Sude"]
[Black "Ozturk, Busra"]
[Result "1-0"]
[ECO "B09"]
[WhiteElo "1170"]
[BlackElo "1100"]
[Annotator "NA RC"]
[PlyCount "75"]
[EventDate "2022.03.04"]
[EventType "swiss"]
[EventCountry "TUR"]
[SourceTitle "playchess.com"]
[Source "ChessBase"]
[SourceQuality "1"]
[TimeControl "5400+30"]

1. d4 d6 2. e4 Nf6 3. Nc3 g6 4. h3 {[%emt 0:01:30]} Bg7 {[%emt 0:09:30]} 5. f4 {[%emt 0:01:30]} O-O {[%emt 0:00:30]} 6. Nf3 {[%emt 0:00:00]} c5 {[%emt 0:00:30]} 7. Be3 {[%emt 0:00:00]} cxd4 {[%emt 0:00:30]} 8. Nxd4 {[%emt 0:02:30]} Re8 {[%emt 0:03:30]} 9. Nf3 {[%emt 0:00:30]} Nc6 {[%emt 0:03:30]} 10. Qd2 {[%emt 0:09:30]} e6 {[%emt 0:03:30]} 11. O-O-O {[%emt 0:06:30]} Re7 {[%emt 0:02:30]} 12. g4 {[%emt 0:01:30]} Qa5 {[%emt 0:05:30]} 13. a3 {[%emt 0:00:30]} Ne8 {[%emt 0:02:30]} 14. Nb5 {[%emt 0:05:30]} Qa4 {[%emt 0:02:30]} 15. Bd3 {[%emt 0:04:30]} a6 {[%emt 0:09:30]} 16. Nc3 {[%emt 0:04:30]} Qa5 {[%emt 0:01:30]} 17. Nb1 {[%emt 0:01:30]} Qxd2+ {[%emt 0:03:30]} 18. Nbxd2 {[%emt 0:00:30]} f5 {[%emt 0:00:00]} 19. g5 {[%emt 0:04:30]} b5 {[%emt 0:03:00]} 20. c3 {[%emt 0:00:30]} Rc7 {[%emt 0:04:30]} 21. Kb1 {[%emt 0:02:30]} Rb8 {[%emt 0:03:30]} 22. Nb3 {[%emt 0:04:30]} a5 {[%emt 0:05:30]} 23. Nbd4 {[%emt 0:00:30]} Na7 {[%emt 0:02:30]} 24. Rc1 {[%emt 0:03:30]} b4 {[%emt 0:03:30]} 25. cxb4 {[%emt 0:01:30]} axb4 {[%emt 0:00:30]} 26. a4 {[%emt 0:00:30]} Rd7 {[%emt 0:01:30]} 27. Nxe6 {[%emt 0:05:30]} Bh8 {[%emt 0:02:30]} 28. exf5 {[%emt 0:02:30]} gxf5 {[%emt 0:01:30]} 29. Bd4 {[%emt 0:04:30]} Ng7 {[%emt 0:02:30]} 30. Nxg7 {[%emt 0:01:30]} Bxg7 {[%emt 0:00:00]} 31. Bxf5 {[%emt 0:02:30]} Rf7 {[%emt 0:01:00]} 32. Bxc8 {[%emt 0:01:30]} Nxc8 {[%emt 0:01:30]} 33. Bxg7 {[%emt 0:00:30]} Kxg7 {[%emt 0:00:30]} 34. Nd4 {[%emt 0:00:30]} Nb6 {[%emt 0:04:30]} 35. b3 {[%emt 0:00:30]} Nd5 {[%emt 0:00:00]} 36. f5 {[%emt 0:00:30]} Re8 {[%emt 0:01:00]} 37. Rhe1 {[%emt 0:02:30]} Ref8 {[%emt 0:01:05]} 38. Ne6+ {[%emt 0:01:30]} 1-0